bitfinex-derivatives/quotes_ETHF0:USTF0_20251119
["timestamp","ask_amount","ask_price","bid_price","bid_amount"]
[1763528686490,0.53193,3048.0,3047.8,0.53195]
[1763528686692,3.2078,3047.9,3047.8,1.15265]
[1763528686893,1.05173,3048.0,3047.9,0.6207]
[1763528691092,3.73972,3048.1,3047.9,1.15265]
[1763528691399,3.2078,3048.1,3048.0,2.68217308]
[1763528691596,4.25951,3048.1,3048.0,1.52954308]
[1763528691796,4.25951,3048.1,3048.0,0.3706]
[1763528691992,4.25951,3048.1,3048.0,0.90253]
[1763528692193,4.25951,3048.1,3048.0,0.3706]
[1763528693004,4.25951,3048.1,3047.9,0.53194]
[1763528693300,0.5198,3047.4,3047.3,1.15275]
[1763528693499,3.7276,3047.4,3047.3,1.15275]
[1763528693994,3.2078,3047.4,3047.3,1.15275]
[1763528694302,3.2078,3047.4,3047.3,1.15508526]
[1763528694501,1.06731,3047.6,3047.5,0.9913]
[1763528696598,3.2078,3047.8,3047.7,1.15268]
[1763528697201,0.5353,3047.8,3047.7,0.6207]
[1763528697400,0.5353,3047.8,3047.5,0.3706]
[1763528697401,0.3599,3047.6,3047.5,0.3706]
[1763528697713,0.3599,3047.6,3047.5,0.8881]
[1763528697896,0.3599,3047.6,3047.5,1.42012]
[1763528698604,0.8919,3047.6,3047.5,0.8881]
[1763528698810,0.8919,3047.6,3047.5,0.3706]
[1763528699106,0.89194,3047.4,3047.3,0.00233526]
[1763528699311,4.09974,3047.4,3047.3,0.00233526]
[1763528701199,4.09974,3047.4,3047.3,0.51983526]
[1763528701704,4.09974,3047.4,3047.3,0.00233526]
[1763528702409,3.5677,3047.4,3047.3,0.00233526]
[1763528702609,4.09974,3047.4,3047.3,0.00233526]
[1763528703504,3.5677,3047.4,3047.3,1.05188526]
[1763528703710,3.5677,3047.4,3047.3,0.00233526]
[1763528704010,4.09974,3047.4,3047.3,0.00233526]
[1763528705613,3.2078,3047.4,3047.3,1.05188526]
[1763528706516,3.2078,3047.4,3047.3,0.51983526]
[1763528706711,0.53201,3047.6,3047.5,0.849]
[1763528707014,0.53199,3047.7,3047.5,0.849]
[1763528707414,0.8919,3047.6,3047.5,0.849]
[1763528707807,0.89194,3047.4,3047.3,0.00233526]
[1763528708005,4.09974,3047.4,3047.3,0.00233526]
[1763528710317,3.5677,3047.4,3047.3,0.00233526]
[1763528710817,4.09974,3047.4,3047.3,0.51983526]
[1763528711016,4.09974,3047.4,3047.3,0.00233526]
[1763528713720,4.09974,3047.4,3047.3,0.51983526]
[1763528713917,3.5677,3047.4,3047.3,1.05188526]
[1763528714316,3.5677,3047.4,3047.3,0.00233526]
[1763528714516,4.09974,3047.4,3047.3,0.00233526]
[1763528714721,3.5677,3047.4,3047.3,1.05188526]
[1763528715426,4.09974,3047.4,3047.3,0.51983526]
[1763528715722,4.09974,3047.4,3047.3,0.00233526]
[1763528720425,4.09974,3047.4,3046.9,0.53211]
[1763528720426,0.53218,3046.6,3046.5,0.3713]
[1763528720614,0.88986,3046.1,3045.6,3.2078]
[1763528720920,0.88986,3046.1,3045.0,0.3315]
[1763528720921,0.3576,3045.6,3045.2,3.2078]
[1763528721120,0.3576,3045.3,3045.2,3.74022]
[1763528721319,3.2078,3045.6,3045.5,0.849]
[1763528721519,3.21020552,3045.6,3045.5,0.8526543]
[1763528721727,4.10015552,3045.6,3045.5,0.3351543]
[1763528722228,3.21020552,3045.6,3045.5,1.3850243]
[1763528722422,3.21020552,3045.6,3045.5,0.8526543]
[1763528722621,4.10015552,3045.6,3045.5,0.3351543]
[1763528723023,4.10015552,3045.6,3045.5,0.0036543]
[1763528723226,4.10015552,3045.6,3045.5,0.2923543]
[1763528724125,4.10015552,3045.6,3045.5,0.0036543]
[1763528724933,4.10015552,3045.6,3045.5,0.2923543]
[1763528725226,3.74255552,3045.6,3045.5,0.7706543]
[1763528725530,3.96065552,3045.6,3045.5,0.7706543]
[1763528726025,3.96065552,3045.6,3045.5,0.2923543]
[1763528726330,3.96065552,3045.6,3045.5,0.0036543]
[1763528726520,3.96065552,3045.6,3045.5,0.2923543]
[1763528727827,3.21020552,3045.6,3045.5,0.7706543]
[1763528728031,3.93965552,3045.6,3045.5,0.0036543]
[1763528728525,0.72584,3045.1,3045.0,3.5393]
[1763528728826,0.1934,3044.8,3044.7,0.53251]
[1763528729131,0.00492069,3045.4,3044.9,1.01037]
[1763528729330,0.72585,3045.1,3045.0,0.2812]
[1763528729529,0.72585,3045.1,3045.0,0.28370445]
[1763528729923,0.1934,3045.1,3045.0,0.81616445]
[1763528730130,0.72584,3045.1,3045.0,0.81616445]
[1763528730330,0.72584,3045.1,3045.0,0.28370445]
[1763528730527,0.00492069,3045.4,3045.0,0.76160445]
[1763528730730,0.00492069,3045.4,3045.3,1.0103]
[1763528731732,0.1934,3045.2,3045.1,1.01033]
[1763528731938,0.5324,3045.3,3045.0,0.28370445]
[1763528731939,0.53731069,3045.4,3045.2,0.53242]
[1763528732130,0.00492069,3045.4,3045.3,1.0103]
[1763528732636,0.00240552,3045.6,3045.5,1.29147]
[1763528732833,0.00240552,3045.6,3045.5,4.49927]
[1763528734335,0.00492069,3045.9,3045.8,1.01022]
[1763528735232,0.00729246,3045.9,3045.8,1.01022]
[1763528735432,0.00729246,3045.9,3045.8,0.4779]
[1763528736030,0.00729246,3045.9,3045.8,1.01022]
[1763528736434,0.00729246,3045.9,3045.8,0.4779]
[1763528737641,0.00729246,3045.9,3045.8,1.01022]
[1763528740340,0.00729246,3045.9,3045.8,0.4779]
[1763528740739,0.00729246,3045.9,3045.8,1.01022]
[1763528741438,0.73305,3045.6,3045.5,0.2812]
[1763528741632,0.2007,3045.3,3045.2,0.00492069]
[1763528742039,0.2007,3045.3,3045.2,0.48282069]
[1763528742233,3.94085,3045.6,3045.5,0.2812]
[1763528743142,0.2007,3045.3,3045.2,0.48282069]
[1763528743338,3.2078,3045.6,3045.5,0.7591]
[1763528743546,0.53961246,3045.9,3045.8,0.4779]
[1763528743845,0.74031246,3045.9,3045.8,0.4779]
[1763528744247,3.94811246,3045.9,3045.8,0.4779]
[1763528744440,0.53232,3045.8,3045.5,0.81357]
[1763528745251,0.53233,3045.7,3045.6,0.4779]
[1763528745450,0.53233,3045.8,3045.6,0.4779]
[1763528745654,0.73303,3045.7,3045.6,0.4779]
[1763528745947,0.2007,3045.3,3045.2,3.69062069]
[1763528746146,0.53239,3045.5,3045.2,3.69062069]
[1763528746549,3.21509246,3045.9,3045.2,3.69062069]
[1763528746749,0.53237,3045.5,3045.2,4.22304069]
[1763528746950,0.53239,3045.4,3045.2,4.22304069]
[1763528747149,0.53239,3045.4,3045.3,0.4779]
[1763528747948,0.73309,3045.4,3045.3,0.4779]
[1763528749253,0.2007,3045.4,3045.3,0.4779]
[1763528749553,0.73309,3045.4,3045.3,0.4779]
[1763528749850,0.2007,3045.3,3045.2,0.00492069]
[1763528750055,0.7331,3045.3,3045.2,0.00492069]
[1763528751745,3.74018,3045.5,3045.4,0.4779]
[1763528751950,0.53238,3045.5,3045.4,0.4779]
[1763528752357,0.73308,3045.5,3045.4,0.4779]
[1763528752856,0.73309,3045.4,3045.2,0.53734069]
[1763528753056,0.73309,3045.4,3045.3,0.4779]
[1763528753555,0.73309,3045.4,3045.3,1.0103]
[1763528753751,0.2007,3045.4,3045.3,1.0103]
[1763528754159,0.73309,3045.4,3045.3,0.4779]
[1763528754358,0.73309,3045.4,3045.3,1.0103]
[1763528754864,0.53237,3045.5,3045.4,0.4779]
[1763528755162,0.53232,3045.8,3045.7,0.4779]
[1763528755757,0.73305,3045.6,3045.5,0.7591]
[1763528757360,0.2007,3045.6,3045.5,0.7591]
[1763528757864,0.73305,3045.6,3045.5,0.7591]
[1763528759665,0.53232,3045.8,3045.5,1.29147]
[1763528759858,0.53234,3045.7,3045.6,0.4502]
[1763528760261,3.21509246,3045.9,3045.7,0.4502]
[1763528760469,3.21509246,3045.9,3045.8,0.98252]
[1763528762169,3.21509246,3045.9,3045.8,0.4502]
[1763528762368,3.74739246,3045.9,3045.8,0.4502]
[1763528762565,3.21509246,3045.9,3045.8,0.4502]
[1763528762966,3.21509246,3045.9,3045.5,3.489]
[1763528763171,0.53235,3045.6,3045.5,0.7314]
[1763528763563,0.53234,3045.7,3045.5,0.7314]
[1763528764071,0.58815,3045.6,3045.5,0.2812]
[1763528765071,1.70894458,3047.1,3045.5,0.2812]
[1763528765072,0.0631,3046.6,3046.5,0.2497]
[1763528765260,0.0631,3046.5,3046.0,3.4575]
[1763528765463,0.59531,3046.5,3046.0,0.78198]
[1763528765663,0.59531,3046.5,3046.1,0.53225]
[1763528765973,0.59531,3046.5,3046.0,0.2497]
[1763528765974,0.5985966,3046.5,3046.2,0.53224]
[1763528766172,0.5985866,3046.5,3046.0,0.78197]
[1763528766365,0.0663866,3046.5,3046.0,0.2497]
[1763528766561,0.0663866,3046.5,3046.1,0.4502]
[1763528766562,0.53225,3046.2,3046.1,0.4502]
[1763528766767,0.59536,3046.1,3046.0,0.2497]
[1763528766967,0.0631,3046.1,3046.0,0.2497]
[1763528767173,0.0631,3046.1,3046.0,0.6999]
[1763528767373,0.59536,3046.1,3046.0,0.2497]
[1763528767568,0.0631,3045.6,3045.5,3.489]
[1763528768467,0.0631,3045.6,3045.5,3.9392]
[1763528768668,0.53233,3045.8,3045.5,3.9392]
[1763528769374,0.53233,3045.8,3045.5,4.47156]
[1763528769977,3.2078,3046.2,3045.5,3.9392]
[1763528770172,0.53233,3045.8,3045.5,3.9392]
[1763528770373,0.53233,3045.8,3045.5,4.47156]
[1763528770671,0.53234,3045.7,3045.5,4.47156]
[1763528770871,0.0631,3045.6,3045.5,4.47156]
[1763528771086,0.0631,3045.6,3045.5,3.9392]
[1763528771272,0.0631,3045.3,3045.2,0.53733069]
[1763528771469,0.0631,3045.3,3045.2,0.98753069]
[1763528771773,3.2709,3045.3,3045.2,0.45512069]
[1763528771969,3.74015,3045.7,3045.2,0.00492069]
[1763528772169,3.2078,3045.7,3045.6,0.4502]
[1763528772374,3.2078,3045.7,3045.6,0.98255]
[1763528772576,3.2078,3046.2,3046.1,0.4502]
[1763528772784,0.53221,3046.4,3046.3,0.4502]
[1763528773082,0.59531,3046.4,3046.3,0.4502]
[1763528773282,0.53224,3046.3,3046.1,0.53226]
[1763528773479,3.74006,3046.2,3046.1,0.4502]
[1763528773884,3.2078,3046.2,3046.1,0.98246]
[1763528774177,3.74005,3046.2,3046.1,0.4502]
[1763528774380,0.53225,3046.2,3046.1,0.4502]
[1763528775982,0.59536,3046.1,3046.0,0.2497]
[1763528776181,0.53226,3046.1,3046.0,1.23218]
[1763528776679,3.2078,3046.2,3046.1,0.98246]
[1763528776982,0.53224,3046.3,3046.2,0.4502]
[1763528777183,0.53221,3046.4,3046.2,0.98245]
[1763528777384,0.53223,3046.3,3046.2,0.98245]
[1763528777584,0.59533,3046.3,3046.2,0.98245]
[1763528778388,0.53223,3046.3,3046.2,0.98245]
[1763528778587,0.0663866,3046.5,3046.4,0.53221]
[1763528778783,0.0663866,3046.5,3046.4,4.19021]
[1763528778784,0.0032866,3046.5,3046.4,4.19021]
[1763528779086,0.00492069,3046.6,3046.5,1.23209]
[1763528779889,0.00880248,3046.6,3046.5,1.23209]
[1763528782789,0.60738248,3046.6,3046.5,0.2497]
[1763528783290,0.60738248,3046.6,3046.5,0.6514]
[1763528783889,0.60738248,3046.6,3046.5,1.18359]
[1763528785094,0.00880248,3046.6,3046.0,3.4575]
[1763528785286,0.53226,3046.1,3046.0,1.18368]
[1763528786193,3.21660248,3046.6,3046.1,0.4017]
[1763528786394,0.53225,3046.3,3046.2,0.93393]
[1763528786593,0.5322,3046.5,3046.0,0.2497]
[1763528786795,3.21660248,3046.6,3046.5,0.6517]
[1763528787690,3.74878248,3046.6,3046.5,0.25]
[1763528790701,0.53226,3046.1,3046.0,0.6505]
[1763528792803,0.53226,3046.1,3046.0,1.18278]
[1763528792997,3.21660248,3046.6,3046.0,1.18278]
[1763528793202,0.53226,3046.1,3046.0,1.18278]
[1763528794302,0.53223,3046.3,3046.1,0.53225]
[1763528794503,3.21660248,3046.6,3046.1,0.53225]
[1763528795904,0.53223,3046.3,3046.2,0.53224]
[1763528796305,0.53223,3046.3,3046.2,0.93304]
[1763528796503,3.21660248,3046.6,3046.5,1.16349]
[1763528796702,3.74878248,3046.6,3046.5,1.16349]
[1763528796909,3.21660248,3046.6,3046.5,1.16349]
[1763528797203,0.0631,3048.0,3046.5,1.16349]
[1763528797204,0.53207,3047.3,3047.2,0.4008]
[1763528797506,3.73984,3047.5,3047.4,0.93284]
[1763528797706,3.2078,3047.5,3047.4,0.93284]
[1763528797907,4.12922,3047.5,3047.4,0.4008]
[1763528798110,0.53205,3047.4,3047.1,0.53209]
[1763528798315,0.3894,3047.3,3047.2,0.93287]
[1763528798704,0.92149,3047.1,3047.0,0.00241341]
[1763528798909,4.12929,3047.1,3047.0,0.00241341]
[1763528800903,4.12929,3047.1,3047.0,1.341e-05]
[1763528801105,0.3894,3046.3,3046.2,0.93305]
[1763528801708,0.53218,3046.6,3046.3,0.53223]
[1763528801915,3.2078,3046.7,3045.9,11.2398]
[1763528802115,0.53221,3046.4,3046.3,0.40417289]
[1763528802516,0.92161,3046.4,3046.3,0.40417289]
[1763528802913,3.5972,3046.7,3046.6,0.4008]
[1763528803211,3.2078,3046.7,3046.6,0.93298]
[1763528803414,0.00347609,3047.5,3047.0,0.2305]
[1763528803616,0.00347609,3047.5,3047.4,0.93284]
[1763528804208,0.00347609,3047.5,3047.4,0.4008]
[1763528804414,0.00347609,3047.5,3047.4,0.93284]
[1763528805516,0.00347609,3047.5,3047.4,0.4008]
[1763528805722,0.92489609,3047.5,3047.4,0.4008]
[1763528805921,0.00347609,3047.5,3047.4,0.93284]
[1763528806122,0.00347609,3047.5,3047.4,0.4008]
[1763528806123,0.92489609,3047.5,3047.4,0.4008]
[1763528806324,0.39287609,3047.5,3047.4,0.4008]
[1763528806518,0.00347609,3047.5,3047.4,0.93284]
[1763528807026,0.00347609,3047.5,3047.4,4.14064]
[1763528809418,0.00347609,3047.5,3047.4,12.17064]
[1763528809619,0.00347609,3047.5,3047.4,11.6386]
[1763528809814,0.00347609,3047.5,3047.4,12.17064]
[1763528810226,0.00347609,3047.5,3047.4,11.6386]
[1763528810525,0.00347609,3047.5,3047.4,12.17064]
[1763528811125,0.00347609,3047.5,3047.4,4.14064]
[1763528811323,0.00347609,3047.5,3047.4,0.4008]
[1763528811631,0.92489609,3047.5,3047.4,0.4008]
[1763528813326,0.00347609,3047.5,3047.4,0.4008]
[1763528813520,0.92489609,3047.5,3047.1,0.53209]
[1763528813714,0.53204,3047.4,3047.0,3.4383]
[1763528813923,0.92146,3047.3,3047.2,0.4008]
[1763528814428,0.3894,3047.3,3047.2,0.4008]
[1763528814827,0.92145,3047.3,3047.2,0.4008]
[1763528815731,0.3894,3047.3,3047.2,0.4008]
[1763528815923,0.92145,3047.3,3047.2,0.4008]
[1763528816425,0.3894,3047.3,3047.2,0.93287]
[1763528816930,0.53204,3047.4,3047.3,0.4008]
[1763528817528,0.92144,3047.4,3047.3,0.4008]
[1763528817929,0.00347609,3047.5,3047.4,0.88964]
[1763528818326,0.00347609,3047.5,3047.4,0.3576]
[1763528818529,0.38917609,3047.5,3047.4,0.3576]
[1763528818723,0.38917609,3047.5,3047.4,0.88964]
[1763528818924,0.00347609,3047.5,3047.4,0.88964]
[1763528819730,0.53549609,3047.5,3047.4,0.3576]
[1763528819924,0.92119609,3047.5,3047.4,0.3576]
[1763528820118,0.22697609,3047.5,3047.0,0.2305]
[1763528820325,0.22697609,3047.5,3047.0,0.76261]
[1763528820630,0.91777,3047.3,3047.2,0.3576]
[1763528820824,0.3857,3047.3,3047.2,0.3576]
[1763528821430,0.91775,3047.3,3047.2,0.3576]
[1763528821626,0.53214,3046.9,3046.5,3.97048]
[1763528821824,0.53215,3046.8,3046.6,6.45016]
[1763528822022,0.91782,3047.0,3046.9,0.3576]
[1763528822222,0.53214,3046.8,3046.7,0.3576]
[1763528822425,0.53225,3046.2,3046.0,3.4575]
[1763528822726,0.91795,3046.2,3046.0,3.2078]
[1763528823127,0.91795,3046.2,3045.6,3.2078]
[1763528823332,0.91795,3046.2,3045.6,3.74014]
[1763528823532,0.91795,3046.2,3046.1,0.00841397]
[1763528824430,0.53233,3045.7,3045.6,3.2078]
[1763528824728,0.5323,3045.9,3045.8,0.3576]
[1763528825234,0.918,3045.9,3045.8,0.3576]
[1763528825429,0.91803,3045.7,3045.6,3.5654]
[1763528825626,0.91803,3045.7,3045.6,3.21125376]
[1763528825826,0.91803,3045.7,3045.6,4.10120376]
[1763528826031,0.91803,3045.7,3045.6,3.56885376]
[1763528827228,0.91803,3045.7,3045.6,0.00345376]
[1763528827534,0.53246,3045.0,3044.8,3.2078]
[1763528827735,0.91817,3044.9,3044.8,3.5654]
[1763528828035,3.2078,3045.3,3044.9,0.89007]
[1763528828234,3.2078,3045.3,3044.9,0.3576]
[1763528828436,3.21119165,3045.3,3044.9,0.36036671]
[1763528828631,3.21119165,3045.3,3044.9,0.89283671]
[1763528828834,0.53246,3045.1,3044.9,0.89283671]
[1763528829035,0.53246,3045.0,3044.9,0.36036671]
[1763528829236,0.91816,3045.0,3044.9,0.36036671]
[1763528829537,0.53244,3045.1,3044.9,0.36036671]
[1763528829738,0.53246,3045.0,3044.9,0.36036671]
[1763528829940,3.21119165,3045.3,3044.9,0.36036671]
[1763528830641,0.53246,3045.0,3044.9,0.36036671]
[1763528831342,0.91816,3045.0,3044.9,0.36036671]
[1763528832241,0.91816,3045.0,3044.9,0.00276671]
[1763528832629,1.14166,3045.0,3044.9,0.00276671]
[1763528832835,1.14166,3045.0,3043.6,2.05143561]
[1763528832836,0.5326,3044.2,3044.1,0.3576]
[1763528833333,0.91828,3044.3,3044.2,0.3576]
[1763528833734,0.91828,3044.3,3044.2,0.36079667]
[1763528833930,0.91828,3044.3,3044.2,0.00319667]
[1763528834335,3.2078,3044.3,3044.2,0.3576]
[1763528835236,3.2078,3044.3,3044.2,0.36087843]
[1763528835435,3.5935,3044.3,3044.2,0.00327843]
[1763528836736,3.5935,3044.3,3044.2,0.36087843]
[1763528837145,3.5935,3044.3,3044.2,0.00327843]
[1763528842443,3.2078,3044.3,3044.2,0.36087843]
[1763528842640,0.34242069,3044.5,3044.4,0.335]
[1763528842841,0.3375,3044.3,3044.2,0.00327843]
[1763528845448,0.3375,3043.1,3043.0,3.2078]
[1763528845950,3.404,3044.0,3043.0,3.7451]
[1763528846147,3.93665,3044.0,3043.4,0.335]
[1763528846451,3.93665,3044.0,3043.4,0.33771146]
[1763528846452,0.3375,3043.5,3043.4,0.33771146]
[1763528846745,0.537,3043.5,3043.4,0.00271146]
[1763528848851,0.3375,3043.5,3043.4,0.35301146]
[1763528849052,3.2078,3043.6,3043.5,0.561]
[1763528849949,3.2078,3043.6,3043.5,6.561]
[1763528850150,0.20996184,3044.0,3043.9,0.53265]
[1763528850342,0.20996184,3044.0,3043.9,3.2078]
[1763528850845,0.56516184,3044.0,3043.9,3.2078]
[1763528852941,0.5609,3043.5,3043.4,3.21051146]
[1763528856847,0.5609,3043.5,3043.4,0.00271146]
[1763528857050,0.5609,3043.0,3042.9,3.2078]
[1763528858055,0.5609,3043.0,3042.9,3.21177941]
[1763528862354,0.88808,3042.6,3042.5,3.2078]
[1763528862953,0.3552,3042.6,3042.5,3.2078]
[1763528863354,0.3552,3042.6,3042.5,3.21039158]
[1763528865954,0.88808,3042.6,3042.5,3.21039158]
[1763528866452,0.88815,3042.2,3042.1,3.2078]
[1763528866751,0.2057,3041.5,3040.0,0.4607]
[1763528866950,0.2057,3042.0,3041.0,0.561]
[1763528866951,0.00492927,3041.1,3041.0,0.561]
[1763528867660,0.00809053,3041.1,3041.0,0.56465274]
[1763528870656,0.00809053,3041.1,3041.0,0.00365274]
[1763528870958,0.36329053,3041.1,3041.0,0.00365274]
[1763528871261,0.53324,3040.6,3040.1,0.01712234]
[1763528871452,3.563,3040.4,3040.1,0.01712234]
[1763528871647,0.3552,3040.2,3040.1,0.01712234]
[1763528872149,0.3552,3040.1,3039.6,3.2078]
[1763528872349,0.3552,3040.1,3038.0,0.2107]
[1763528872350,3.2078,3040.1,3039.0,0.2107]
[1763528872553,3.2078,3040.5,3040.0,0.561]
[1763528872954,3.2078,3040.5,3040.4,0.3503]
[1763528873156,3.94658,3041.5,3040.7,0.3503]
[1763528873352,3.21589053,3041.1,3040.7,0.3503]
[1763528873553,3.2078,3041.9,3041.5,0.2107]
[1763528873854,3.2078,3041.9,3041.5,0.74375]
[1763528874058,3.2078,3041.9,3041.6,0.53304]
[1763528874465,3.21122012,3041.9,3041.6,0.53304]
[1763528874663,3.21122012,3041.9,3041.8,0.3503]
[1763528875364,0.00342012,3041.9,3041.8,0.3503]
[1763528875563,0.00342012,3041.9,3041.8,4.6633]
[1763528876158,0.00342012,3041.9,3041.8,0.3503]
[1763528876363,3.56642012,3041.9,3041.5,0.2107]
[1763528876663,0.3552,3041.5,3041.4,0.00492927]
[1763528876862,3.563,3041.5,3041.4,0.00492927]
[1763528877465,3.8587,3041.5,3041.4,0.00492927]
[1763528877764,0.5331,3041.4,3040.4,0.00262751]
[1763528877958,3.2078,3041.0,3040.7,0.5332]
[1763528878666,2.85806003,3041.0,3040.9,0.4835]
[1763528878859,3.2078,3041.4,3041.3,0.4835]
[1763528879259,3.2078,3041.4,3041.0,0.2956]
[1763528879461,3.2078,3041.4,3040.4,0.00262751]
[1763528879661,3.2078,3041.0,3040.4,0.00262751]
[1763528879856,3.2078,3041.0,3040.4,2.54862751]
[1763528880062,3.2078,3041.0,3040.9,0.4835]
[1763528880661,3.2078,3041.0,3040.5,0.74394]
[1763528880862,3.2078,3041.0,3040.7,0.5332]
[1763528881159,3.2078,3041.0,3040.9,0.4835]
[1763528881366,0.00342012,3041.9,3041.3,1.0166]
[1763528881367,3.2078,3041.4,3041.3,1.0166]
[1763528882261,3.2078,3041.8,3041.7,1.01653]
[1763528883071,3.2078,3041.8,3041.5,0.2956]
[1763528883375,3.2078,3041.8,3040.8,3.2078]
[1763528883560,3.2078,3041.3,3040.8,3.2078]
[1763528883767,3.2078,3041.3,3040.9,0.53316]
[1763528883967,3.2078,3041.3,3040.4,0.00262751]
[1763528883968,0.4928,3040.9,3040.4,3.74368751]
[1763528884168,0.4928,3040.9,3040.5,0.2956]
[1763528884375,0.4928,3040.9,3040.5,0.82884]
[1763528884978,3.2078,3040.8,3040.4,3.21042751]
[1763528885180,3.2078,3040.8,3040.7,0.4835]
[1763528885679,0.4928,3039.6,3038.5,0.2956]
[1763528885870,3.2078,3040.0,3039.0,0.2956]
[1763528886067,3.2078,3039.3,3039.2,0.4835]
[1763528886265,0.2957,3040.5,3039.0,4.92270111]
[1763528886472,3.2078,3040.1,3039.6,0.53339]
[1763528886669,0.2957,3039.6,3039.4,0.53343]
[1763528886976,0.4928,3039.4,3039.3,3.2078]
[1763528887163,0.2957,3039.6,3039.4,0.53344]
[1763528887369,0.2957,3039.6,3039.5,1.71490111]
[1763528887572,0.00377482,3040.1,3039.9,0.53333]
[1763528887772,0.00377482,3040.1,3039.9,3.74113]
[1763528888067,0.2957,3039.6,3039.4,3.2078]
[1763528888264,0.2957,3039.6,3039.4,3.74123]
[1763528888467,0.00377482,3040.1,3039.9,0.53334]
[1763528888670,0.00377482,3040.1,3039.9,3.74114]
[1763528889382,0.00377482,3040.1,3039.9,0.53334]
[1763528889571,0.4928,3039.7,3039.6,5.623]
[1763528889769,0.2957,3039.6,3039.3,3.21039257]
[1763528889973,0.4928,3039.4,3039.3,0.00259257]
[1763528890281,0.4928,3039.4,3023.4,0.053]
[1763528890282,0.4928,3038.1,3037.5,3.2078]
[1763528890469,0.2957,3038.4,3037.8,1.71490111]
[1763528890674,0.00493778,3038.1,3038.0,3.2078]
[1763528890977,0.00493778,3038.1,3037.2,2.338]
[1763528890978,0.4928,3038.0,3037.9,0.53369]
[1763528891168,0.00493778,3038.1,3037.9,0.53794389]
[1763528891373,0.00493778,3038.1,3037.9,3.74574389]
[1763528891573,0.00493778,3038.1,3037.9,0.00425389]
[1763528891772,0.7885,3037.2,3037.1,3.2078]
[1763528891976,0.2957,3037.2,3037.0,4.92270111]
[1763528892179,0.2957,3037.8,3037.0,4.92270111]
[1763528892376,0.00493778,3038.1,3037.6,3.2078]
[1763528892577,0.2957,3037.8,3037.6,3.2078]
[1763528892782,0.46689844,3037.7,3037.6,0.00426689]
[1763528893080,0.00396572,3037.8,3037.6,0.00426689]
[1763528893277,0.2957,3039.0,3038.9,0.53353]
[1763528893783,3.2078,3039.7,3039.4,0.53343]
[1763528894076,3.5035,3040.2,3039.4,0.53343]
[1763528894278,0.29923136,3039.6,3039.4,0.53342]
[1763528894476,0.29923136,3039.6,3039.5,10.4088]
[1763528894682,0.79203136,3039.6,3039.4,0.53342]
[1763528894869,0.00353136,3039.6,3039.5,8.071]
[1763528895073,0.00353136,3039.6,3039.5,11.2788]
[1763528895575,0.2957,3040.2,3040.1,0.53331]
[1763528895978,0.2957,3040.2,3040.1,6.89131]
[1763528896677,0.29836025,3040.2,3040.1,6.89462873]
[1763528896890,0.29836025,3040.2,3040.1,0.53662873]
[1763528897176,0.2957,3040.8,3040.1,14.07731873]
[1763528897380,3.5035,3041.4,3040.1,14.07731873]
[1763528897381,0.2957,3041.4,3041.3,0.5331]
[1763528897585,0.2957,3041.4,3041.3,11.8179]
[1763528897981,0.7885,3041.4,3040.8,3.2078]
[1763528898375,0.79657348,3041.4,3040.8,3.21273778]
[1763528898583,0.79657348,3041.4,3040.9,2.574]
[1763528898884,0.79657348,3041.4,3040.9,3.10717]
[1763528899070,0.4928,3040.9,3040.8,3.21273778]
[1763528899275,0.30377348,3041.4,3040.8,11.29073778]
[1763528899482,0.30377348,3041.4,3041.2,3.2078]
[1763528899779,0.30377348,3041.4,3041.2,3.74091]
[1763528900276,0.4928,3041.3,3041.2,3.2078]
[1763528900675,0.4928,3040.9,3040.8,0.00493778]
[1763528900870,3.7006,3040.9,3040.8,0.00493778]
[1763528901075,3.7006,3040.9,3040.8,0.53812778]
[1763528901275,0.2957,3040.2,3040.1,0.00331873]
[1763528901473,0.2957,3040.2,3040.1,3.21111873]
[1763528902376,0.4677,3039.9,3039.8,0.00493778]
[1763528902575,0.4677,3039.4,3039.3,3.2078]
[1763528902779,0.2924,3039.6,3039.4,0.53343]
[1763528903478,0.00493778,3039.8,3039.4,0.00248276]
[1763528903684,0.47263778,3039.8,3039.6,0.53339]
[1763528903980,0.4677,3039.7,3039.6,0.53339]
[1763528904387,0.4677,3039.7,3039.6,8.61539]
[1763528904577,0.4677,3039.5,3039.4,0.00248276]
[1763528904779,3.6755,3039.5,3039.4,0.00248276]
[1763528905084,0.4677,3039.5,3039.4,0.00248276]
[1763528905281,0.4677,3039.0,3038.9,3.2078]
[1763528905476,0.2924,3039.4,3038.9,3.2078]
[1763528905785,0.2924,3039.4,3039.3,3.2078]
[1763528906083,0.00493778,3039.8,3039.7,0.53338]
[1763528906284,0.00754703,3039.8,3039.7,0.53694066]
[1763528906673,0.47524703,3039.8,3039.7,0.00356066]
[1763528906879,0.00754703,3039.8,3039.7,0.00356066]
[1763528907386,0.00754703,3039.8,3039.7,3.21136066]
[1763528907586,0.2957,3040.2,3040.1,0.53331]
[1763528907786,0.2957,3040.2,3040.1,3.74111]
[1763528908585,0.29854219,3040.2,3040.1,3.74111]
[1763528908885,0.29854219,3040.2,3040.1,7.56011]
[1763528909087,0.00284219,3040.2,3040.1,7.56011]
[1763528910176,0.00284219,3040.2,3040.1,3.74111]
[1763528910382,0.00493778,3040.5,3040.4,0.53326]
[1763528910580,0.50973778,3040.5,3040.4,0.53326]
[1763528910780,0.00493778,3040.5,3040.4,0.53326]
[1763528911381,0.00884318,3040.5,3040.4,0.53326]
[1763528911582,0.00884318,3040.5,3040.4,3.12826]
[1763528911781,0.00884318,3040.5,3040.4,2.595]
[1763528911988,0.00884318,3040.5,3040.3,0.53327]
[1763528912189,0.00884318,3040.5,3040.4,8.078]
[1763528912386,0.00884318,3040.5,3040.3,8.61127]
[1763528912687,0.00884318,3040.5,3040.3,8.61027]
[1763528912883,0.00884318,3040.5,3040.4,8.078]
[1763528913888,0.00884318,3040.5,3040.3,0.53327]
[1763528914088,0.00884318,3040.5,3040.4,8.077]